{"text_format":"3","workbook":"xlsx","n_sheets":1,"sheets":["Shift Schedule"],"read":"whole","date_system":"1900"}

{"sheet":"Shift Schedule","index":0,"n_rows":66,"n_cols":13,"rows_kept":66,"merged":[[2,11,2,12],[3,11,3,12]]}
[]
[null,"SHIFT SCHEDULE"]
[{"$nulls":10},"For the Week of: ","DATE"]
[{"$nulls":10},"Department Name: ","DEPARTMENT"]
[null,"MONDAY"]
[null,"Name","7:00 AM","8:00 AM","9:00 AM","10:00 AM","11:00 AM","12:00 PM","1:00 PM","2:00 PM","3:00 PM","Sick?","TOTAL"]
[null,"Kelly F","manager","manager","manager","manager","manager","manager","manager","manager","manager",null,{"$f":"COUNTIF(tblMonday[[#This Row],[7:00 AM]:[3:00 PM]],\"*\")","v":9}]
[null,"Tom Y",null,"cashier","cashier","cashier","cashier",{"$nulls":5},{"$f":"COUNTIF(tblMonday[[#This Row],[7:00 AM]:[3:00 PM]],\"*\")","v":4}]
[null,"James S",null,"front desk","front desk","front desk","front desk ","front desk","front desk","front desk",null,null,{"$f":"COUNTIF(tblMonday[[#This Row],[7:00 AM]:[3:00 PM]],\"*\")","v":7}]
[null,"Jon M",null,"front desk","front desk","front desk","front desk ","front desk","front desk","front desk",null,null,{"$f":"COUNTIF(tblMonday[[#This Row],[7:00 AM]:[3:00 PM]],\"*\")","v":7}]
[null,"Sean P",{"$nulls":9},"Sick",{"$f":"COUNTIF(tblMonday[[#This Row],[7:00 AM]:[3:00 PM]],\"*\")","v":0}]
[null,"Teresa A",{"$nulls":5},"cashier","cashier","cashier","cashier",null,{"$f":"COUNTIF(tblMonday[[#This Row],[7:00 AM]:[3:00 PM]],\"*\")","v":4}]
[]
[null,"TUESDAY"]
[null,"Name","7:00 AM","8:00 AM","9:00 AM","10:00 AM","11:00 AM","12:00 PM","1:00 PM","2:00 PM","3:00 PM","Sick?","TOTAL"]
[null,"Kelly F","manager","manager","manager","manager","manager","manager","manager","manager","manager",null,{"$f":"COUNTIF(tblTuesday[[#This Row],[7:00 AM]:[3:00 PM]],\"*\")","v":9}]
[null,"Tom Y",null,"cashier","cashier","cashier","cashier",{"$nulls":5},{"$f":"COUNTIF(tblTuesday[[#This Row],[7:00 AM]:[3:00 PM]],\"*\")","v":4}]
[null,"James S",null,"front desk","front desk","front desk","front desk ","front desk","front desk","front desk",null,null,{"$f":"COUNTIF(tblTuesday[[#This Row],[7:00 AM]:[3:00 PM]],\"*\")","v":7}]
[null,"Jon M",null,"front desk","front desk","front desk","front desk ","front desk","front desk","front desk",null,null,{"$f":"COUNTIF(tblTuesday[[#This Row],[7:00 AM]:[3:00 PM]],\"*\")","v":7}]
[null,"Sean P",{"$nulls":9},"Sick",{"$f":"COUNTIF(tblTuesday[[#This Row],[7:00 AM]:[3:00 PM]],\"*\")","v":0}]
[null,"Teresa A",{"$nulls":5},"cashier","cashier","cashier","cashier",null,{"$f":"COUNTIF(tblTuesday[[#This Row],[7:00 AM]:[3:00 PM]],\"*\")","v":4}]
[]
[null,"WEDNESDAY"]
[null,"Name","7:00 AM","8:00 AM","9:00 AM","10:00 AM","11:00 AM","12:00 PM","1:00 PM","2:00 PM","3:00 PM","Sick?","TOTAL"]
[null,"Kelly F","manager","manager","manager","manager","manager","manager","manager","manager","manager",null,{"$f":"COUNTIF(tblWednesday[[#This Row],[7:00 AM]:[3:00 PM]],\"*\")","v":9}]
[null,"Tom Y",null,"cashier","cashier","cashier","cashier",{"$nulls":5},{"$f":"COUNTIF(tblWednesday[[#This Row],[7:00 AM]:[3:00 PM]],\"*\")","v":4}]
[null,"James S",null,"front desk","front desk","front desk","front desk ","front desk","front desk","front desk",null,null,{"$f":"COUNTIF(tblWednesday[[#This Row],[7:00 AM]:[3:00 PM]],\"*\")","v":7}]
[null,"Jon M",null,"front desk","front desk","front desk","front desk ","front desk","front desk","front desk",null,null,{"$f":"COUNTIF(tblWednesday[[#This Row],[7:00 AM]:[3:00 PM]],\"*\")","v":7}]
[null,"Sean P",{"$nulls":9},"Sick",{"$f":"COUNTIF(tblWednesday[[#This Row],[7:00 AM]:[3:00 PM]],\"*\")","v":0}]
[null,"Teresa A",{"$nulls":5},"cashier","cashier","cashier","cashier",null,{"$f":"COUNTIF(tblWednesday[[#This Row],[7:00 AM]:[3:00 PM]],\"*\")","v":4}]
[]
[null,"THURSDAY"]
[null,"Name","7:00 AM","8:00 AM","9:00 AM","10:00 AM","11:00 AM","12:00 PM","1:00 PM","2:00 PM","3:00 PM","Sick?","TOTAL"]
[null,"Kelly F","manager","manager","manager","manager","manager","manager","manager","manager","manager",null,{"$f":"COUNTIF(tblThursday[[#This Row],[7:00 AM]:[3:00 PM]],\"*\")","v":9}]
[null,"Tom Y",null,"cashier","cashier","cashier","cashier",{"$nulls":5},{"$f":"COUNTIF(tblThursday[[#This Row],[7:00 AM]:[3:00 PM]],\"*\")","v":4}]
[null,"James S",null,"front desk","front desk","front desk","front desk ","front desk","front desk","front desk",null,null,{"$f":"COUNTIF(tblThursday[[#This Row],[7:00 AM]:[3:00 PM]],\"*\")","v":7}]
[null,"Jon M",null,"front desk","front desk","front desk","front desk ","front desk","front desk","front desk",null,null,{"$f":"COUNTIF(tblThursday[[#This Row],[7:00 AM]:[3:00 PM]],\"*\")","v":7}]
[null,"Sean P",{"$nulls":9},"Sick",{"$f":"COUNTIF(tblThursday[[#This Row],[7:00 AM]:[3:00 PM]],\"*\")","v":0}]
[null,"Teresa A",{"$nulls":5},"cashier","cashier","cashier","cashier",null,{"$f":"COUNTIF(tblThursday[[#This Row],[7:00 AM]:[3:00 PM]],\"*\")","v":4}]
[]
[null,"FRIDAY"]
[null,"Name","7:00 AM","8:00 AM","9:00 AM","10:00 AM","11:00 AM","12:00 PM","1:00 PM","2:00 PM","3:00 PM","Sick?","TOTAL"]
[null,"Kelly F","manager","manager","manager","manager","manager","manager","manager","manager","manager",null,{"$f":"COUNTIF(tblFriday[[#This Row],[7:00 AM]:[3:00 PM]],\"*\")","v":9}]
[null,"Tom Y",null,"cashier","cashier","cashier","cashier",{"$nulls":5},{"$f":"COUNTIF(tblFriday[[#This Row],[7:00 AM]:[3:00 PM]],\"*\")","v":4}]
[null,"James S",null,"front desk","front desk","front desk","front desk ","front desk","front desk","front desk",null,null,{"$f":"COUNTIF(tblFriday[[#This Row],[7:00 AM]:[3:00 PM]],\"*\")","v":7}]
[null,"Jon M",null,"front desk","front desk","front desk","front desk ","front desk","front desk","front desk",null,null,{"$f":"COUNTIF(tblFriday[[#This Row],[7:00 AM]:[3:00 PM]],\"*\")","v":7}]
[null,"Sean P",{"$nulls":9},"Sick",{"$f":"COUNTIF(tblFriday[[#This Row],[7:00 AM]:[3:00 PM]],\"*\")","v":0}]
[null,"Teresa A",{"$nulls":5},"cashier","cashier","cashier","cashier",null,{"$f":"COUNTIF(tblFriday[[#This Row],[7:00 AM]:[3:00 PM]],\"*\")","v":4}]
[]
[null,"SATURDAY"]
[null,"Name","7:00 AM","8:00 AM","9:00 AM","10:00 AM","11:00 AM","12:00 PM","1:00 PM","2:00 PM","3:00 PM","Sick?","TOTAL"]
[null,"Kelly F","manager","manager","manager","manager","manager","manager","manager","manager","manager",null,{"$f":"COUNTIF(tblSaturday[[#This Row],[7:00 AM]:[3:00 PM]],\"*\")","v":9}]
[null,"Tom Y",null,"cashier","cashier","cashier","cashier",{"$nulls":5},{"$f":"COUNTIF(tblSaturday[[#This Row],[7:00 AM]:[3:00 PM]],\"*\")","v":4}]
[null,"James S",null,"front desk","front desk","front desk","front desk ","front desk","front desk","front desk",null,null,{"$f":"COUNTIF(tblSaturday[[#This Row],[7:00 AM]:[3:00 PM]],\"*\")","v":7}]
[null,"Jon M",null,"front desk","front desk","front desk","front desk ","front desk","front desk","front desk",null,null,{"$f":"COUNTIF(tblSaturday[[#This Row],[7:00 AM]:[3:00 PM]],\"*\")","v":7}]
[null,"Sean P",{"$nulls":9},"Sick",{"$f":"COUNTIF(tblSaturday[[#This Row],[7:00 AM]:[3:00 PM]],\"*\")","v":0}]
[null,"Teresa A",{"$nulls":5},"cashier","cashier","cashier","cashier",null,{"$f":"COUNTIF(tblSaturday[[#This Row],[7:00 AM]:[3:00 PM]],\"*\")","v":4}]
[]
[null,"SUNDAY"]
[null,"Name","7:00 AM","8:00 AM","9:00 AM","10:00 AM","11:00 AM","12:00 PM","1:00 PM","2:00 PM","3:00 PM","Sick?","TOTAL"]
[null,"Kelly F","manager","manager","manager","manager","manager","manager","manager","manager","manager",null,{"$f":"COUNTIF(tblSunday[[#This Row],[7:00 AM]:[3:00 PM]],\"*\")","v":9}]
[null,"Tom Y",null,"cashier","cashier","cashier","cashier",{"$nulls":5},{"$f":"COUNTIF(tblSunday[[#This Row],[7:00 AM]:[3:00 PM]],\"*\")","v":4}]
[null,"James S",null,"front desk","front desk","front desk","front desk ","front desk","front desk","front desk",null,null,{"$f":"COUNTIF(tblSunday[[#This Row],[7:00 AM]:[3:00 PM]],\"*\")","v":7}]
[null,"Jon M",null,"front desk","front desk","front desk","front desk ","front desk","front desk","front desk",null,null,{"$f":"COUNTIF(tblSunday[[#This Row],[7:00 AM]:[3:00 PM]],\"*\")","v":7}]
[null,"Sean P",{"$nulls":9},"Sick",{"$f":"COUNTIF(tblSunday[[#This Row],[7:00 AM]:[3:00 PM]],\"*\")","v":0}]
[null,"Teresa A",{"$nulls":5},"cashier","cashier","cashier","cashier",null,{"$f":"COUNTIF(tblSunday[[#This Row],[7:00 AM]:[3:00 PM]],\"*\")","v":4}]